bitfinex/quotes_ETHUSD_20250622
["timestamp","ask_amount","ask_price","bid_price","bid_amount"]
[1750624187356,0.0255,2136.9,2134.5,2.30315398]
[1750624187357,0.0255,2136.5,2135.3,1.572]
[1750624187562,10.55,2136.3,2135.3,1.572]
[1750624187747,10.3972,2136.2,2135.3,1.572]
[1750624188764,12.826,2136.1,2135.4,18.0]
[1750624189160,1.4422,2136.2,2135.4,18.0]
[1750624189361,12.825,2136.1,2135.4,18.0]
[1750624191224,12.825,2136.1,2135.3,1.572]
[1750624191430,14.40376184,2136.1,2135.3,1.572]
[1750624191871,12.825,2136.1,2135.3,1.6308]
[1750624192575,14.3836,2136.1,2135.3,1.572]
[1750624192902,0.55,2136.0,2135.3,1.572]
[1750624193128,10.55,2136.0,2135.0,1.572]
[1750624193414,14.3836,2136.1,2134.5,13.44070938]
[1750624193415,0.55,2135.5,2134.6,1.572]
[1750624193574,1.5331,2135.6,2134.2,1.5223]
[1750624193575,10.5755,2135.3,2134.2,1.5223]
[1750624193755,12.705,2135.4,2134.2,1.5223]
[1750624193756,10.55,2135.1,2134.2,1.5223]
[1750624193963,10.528,2135.0,2134.2,1.5223]
[1750624194457,10.0,2134.9,2134.2,1.5223]
[1750624194982,10.528,2135.0,2134.2,1.5223]
[1750624194983,1.5615,2135.0,2134.2,1.5223]
[1750624195167,8.941,2134.8,2134.2,1.5223]
[1750624196205,8.941,2134.8,2133.9,1.5252]
[1750624196410,8.9665,2134.8,2133.9,1.5252]
[1750624196577,10.55,2134.7,2133.5,1.5252]
[1750624197270,12.701,2134.6,2133.5,1.5252]
[1750624197991,13.38571184,2134.6,2133.5,1.5252]
[1750624200177,13.38571184,2134.6,2133.6,0.04686263]
[1750624200556,13.38571184,2134.6,2133.5,1.5252]
[1750624200557,4.44871184,2134.6,2133.5,1.5252]
[1750624200913,0.0255,2134.3,2133.5,1.5252]
[1750624201057,3.765,2134.9,2133.9,1.5224]
[1750624201267,0.0255,2134.7,2133.9,1.5224]
[1750624201485,1.29735,2134.7,2133.9,1.5224]
[1750624201698,3.765,2134.9,2134.0,0.04686192]
[1750624201861,8.926,2134.8,2134.0,0.04686192]
[1750624202059,8.926,2134.8,2133.9,1.5224]
[1750624202288,11.251,2135.2,2133.9,1.5224]
[1750624202459,12.69,2135.1,2133.9,1.5224]
[1750624202790,15.08665,2135.1,2134.0,0.10565136]
[1750624203156,15.08665,2135.1,2134.0,0.0588]
[1750624203359,1.6664,2134.9,2133.9,1.5224]
[1750624203572,0.5755,2135.0,2133.9,1.5224]
[1750624203573,8.922,2134.8,2134.0,0.10565795]
[1750624203793,8.922,2134.8,2134.0,0.0588]
[1750624203997,8.922,2134.7,2134.1,1.6089]
[1750624204804,1.6919,2134.6,2133.8,1.6089]
[1750624205108,0.55,2134.5,2133.8,1.6089]
[1750624205404,0.55,2134.3,2133.5,1.6089]
[1750624205702,0.55,2134.3,2133.0,0.0588]
[1750624205703,10.55,2134.1,2133.1,1.6089]
[1750624205907,23.5019,2134.1,2133.1,1.6089]
[1750624207699,12.68,2134.0,2133.1,1.6089]
[1750624208268,12.68,2134.0,2133.1,1.4089]
[1750624208766,0.0255,2133.8,2133.1,1.4089]
[1750624209080,1.35105,2133.8,2133.1,1.4089]
[1750624209278,0.55,2133.7,2132.2,0.0588]
[1750624209481,8.911,2133.6,2132.2,0.53879624]
[1750624209674,8.911,2133.6,2132.3,0.0588]
[1750624209874,0.55,2133.5,2132.3,0.0588]
[1750624210179,0.55,2133.3,2131.8,15.51984895]
[1750624210385,3.7915,2133.2,2131.9,0.0588]
[1750624210587,1.6314,2132.9,2131.9,0.0588]
[1750624210806,0.55,2132.8,2131.5,0.0588]
[1750624210966,0.0255,2132.7,2131.5,0.0588]
[1750624211163,0.0255,2132.7,2130.8,0.7926834]
[1750624211164,0.55,2132.1,2130.8,0.7926834]
[1750624211417,0.55,2132.1,2129.9,7.08276374]
[1750624211418,1.6314,2131.8,2130.5,1.6644]
[1750624211578,12.1814,2131.4,2130.1,1.6644]
[1750624211806,10.55,2131.2,2130.2,0.39187992]
[1750624212031,10.55,2131.2,2129.2,1.6644]
[1750624212032,11.75384895,2130.6,2129.2,1.6644]
[1750624212345,1.6314,2130.3,2129.2,0.0588]
[1750624212634,8.903,2130.2,2129.2,0.0588]
[1750624212839,8.903,2130.2,2129.3,18.0]
[1750624213145,1.6314,2130.3,2129.4,0.04695487]
[1750624213306,10.55,2130.0,2129.3,18.0]
[1750624213506,12.671,2130.1,2129.3,18.0]
[1750624213507,10.0,2129.8,2129.3,18.0]
[1750624213899,2.1304,2129.7,2129.3,18.0]
[1750624214330,1.5804,2129.7,2129.3,17.7]
[1750624214534,12.668,2129.6,2129.3,17.7]
[1750624214739,3.767,2129.6,2129.3,17.7]
[1750624214920,13.50370982,2130.7,2129.3,17.7]
[1750624214921,3.767,2130.4,2129.4,25.32067019]
[1750624215232,12.667,2130.4,2129.5,1.593]
[1750624215636,10.0,2130.3,2129.3,18.0]
[1750624215795,0.55,2130.2,2129.3,18.0]
[1750624216307,11.265,2130.5,2129.5,0.061]
[1750624216512,20.167,2130.5,2129.5,0.061]
[1750624216724,1.6341,2131.2,2130.0,18.19852864]
[1750624216911,12.671,2131.1,2130.1,1.81985286]
[1750624217248,1.6341,2131.2,2130.3,0.061]
[1750624217547,8.9,2131.1,2130.3,0.061]
[1750624217727,8.902,2131.0,2130.3,0.061]
[1750624218114,8.902,2131.0,2130.2,1.6397]
[1750624218310,10.0,2131.1,2130.3,0.04693996]
[1750624218513,8.9,2131.0,2130.2,1.7007]
[1750624218711,11.167,2131.0,2130.2,1.7007]
[1750624219038,8.9,2131.0,2130.2,1.7007]
[1750624219243,8.9,2131.0,2130.2,1.7476329]
[1750624219447,8.9,2131.0,2130.3,0.04693731]
[1750624219949,3.771,2131.2,2130.2,1.7007]
[1750624220112,8.897,2131.1,2130.2,1.7007]
[1750624220313,8.896,2131.0,2130.2,1.7007]
[1750624220920,3.771,2131.2,2130.3,0.04693893]
[1750624220921,8.894,2130.9,2130.3,0.04693893]
[1750624221110,8.894,2130.9,2130.2,1.7007]
[1750624221951,11.272,2131.4,2130.3,10.061]
[1750624222126,11.272,2131.4,2130.3,0.061]
[1750624222329,12.559,2131.3,2130.3,0.1079358]
[1750624222868,11.272,2131.4,2130.4,10.0]
[1750624223014,11.272,2131.4,2130.5,0.061]
[1750624223363,12.557,2131.6,2130.7,15.11230982]
[1750624223654,11.276,2132.2,2131.1,13.50370982]
[1750624223813,3.666,2132.2,2131.4,0.061]
[1750624224016,8.889,2132.5,2131.6,0.061]
[1750624224211,8.888,2132.5,2131.9,0.061]
[1750624224440,8.888,2132.9,2132.0,1.5476]
[1750624224716,12.555,2133.0,2132.2,4.68978639]
[1750624224910,12.555,2133.0,2132.3,0.57686352]
[1750624225251,8.887,2133.2,2132.4,1.5476]
[1750624225463,12.553,2133.4,2132.6,0.061]
[1750624226757,12.553,2133.4,2132.1,10.0]
[1750624226758,1.5065,2133.2,2131.9,1.6269]
[1750624226959,1.70065,2133.1,2131.9,1.6269]
[1750624228265,3.666,2133.2,2132.1,0.061]
[1750624228564,3.666,2133.2,2132.1,10.061]
[1750624228760,3.666,2133.2,2132.5,0.061]
[1750624228951,8.877,2133.5,2132.7,0.061]
[1750624229260,8.876,2133.6,2132.7,0.061]
[1750624229468,8.876,2133.6,2132.7,1.22979]
[1750624230260,8.876,2133.6,2132.8,0.04687653]
[1750624230518,8.873,2133.6,2132.7,0.061]
[1750624230964,8.872,2133.6,2132.7,0.061]
[1750624231123,3.666,2133.7,2132.8,0.04687545]
[1750624231329,8.87,2133.6,2132.9,1.5441]
[1750624231538,8.87,2133.6,2133.0,0.04687237]
[1750624231739,1.6087,2134.5,2133.1,0.061]
[1750624231941,1.6087,2134.5,2133.0,0.04687026]
[1750624231942,3.665,2134.4,2133.4,0.061]
[1750624232162,8.868,2134.3,2133.4,0.10786152]
[1750624232361,8.868,2134.3,2133.3,11.5441]
[1750624232362,8.868,2134.3,2133.3,1.5441]
[1750624232535,0.55,2134.0,2132.9,1.5441]
[1750624233047,8.866,2133.9,2132.9,1.5441]
[1750624233247,3.664,2133.8,2132.9,1.5441]
[1750624233453,8.866,2133.7,2132.9,1.5441]
[1750624233659,12.527,2133.7,2133.0,0.04687565]
[1750624233964,13.7797,2133.7,2132.9,1.5441]
[1750624234195,11.82,2133.6,2132.5,1.5441]
[1750624234734,11.82,2133.6,2132.6,0.04688577]
[1750624235155,11.82,2133.6,2132.6,0.04688588]
[1750624235484,11.27,2133.6,2132.6,0.10788588]
[1750624235686,3.664,2134.2,2133.1,0.061]
[1750624235974,3.664,2134.2,2133.4,0.061]
[1750624236133,3.664,2134.2,2133.3,1.5441]
[1750624237042,8.856,2134.2,2133.4,0.04686703]
[1750624237244,3.664,2134.3,2133.3,1.6051]
[1750624237439,3.664,2134.3,2133.4,10.0]
[1750624237634,3.664,2134.3,2133.7,1.5441]
[1750624237841,8.854,2134.4,2133.7,1.5441]
[1750624238176,11.27,2134.5,2133.9,0.061]
[1750624238863,11.27,2134.5,2133.9,0.10785416]
[1750624239072,8.853,2134.7,2134.0,1.5795]
[1750624239437,12.1134,2134.6,2133.2,1.5795]
[1750624239945,12.1134,2134.6,2133.3,0.04687126]
[1750624240277,8.853,2134.7,2133.3,0.04687126]
[1750624240278,8.853,2134.7,2133.5,1.5795]
[1750624240609,3.664,2134.8,2133.9,13.50370982]
[1750624240737,8.847,2135.2,2134.4,0.061]
[1750624241088,3.663,2135.3,2134.6,0.061]
[1750624241576,3.663,2135.3,2134.9,0.061]
[1750624241742,3.663,2135.3,2134.8,11.6604]
[1750624241938,3.663,2135.3,2134.8,1.6604]
[1750624242139,0.3663,2135.2,2134.4,1.6604]
[1750624242363,3.663,2135.3,2134.4,1.6604]
[1750624242567,3.663,2135.3,2134.5,0.1078429]
[1750624243973,3.663,2135.3,2134.5,0.061]
[1750624244269,12.5,2135.3,2134.5,0.10784201]
[1750624244475,12.5,2135.3,2134.6,11.5746]
[1750624244672,8.836,2135.9,2134.9,1.5746]
[1750624244873,8.836,2135.9,2135.0,0.04683177]
[1750624245051,8.836,2135.9,2134.9,1.5746]
[1750624245256,8.834,2135.9,2134.9,1.5746]
[1750624245455,8.834,2135.9,2134.7,10.0]
[1750624245456,3.662,2136.0,2135.3,1.5746]
[1750624245953,3.662,2136.3,2135.3,1.5746]
[1750624246154,3.662,2136.3,2135.4,10.04682212]
[1750624246355,3.662,2136.3,2135.4,10.0]
[1750624246549,3.662,2136.3,2135.5,0.0567]
[1750624246749,3.662,2136.3,2135.5,0.10352298]
[1750624247192,12.493,2136.3,2135.5,0.10352298]
[1750624247397,12.493,2136.3,2135.5,1.38764828]
[1750624247695,12.493,2136.3,2135.5,1.33094828]
[1750624247881,12.493,2136.3,2135.5,1.3309466]
[1750624248056,12.493,2136.3,2135.5,0.0468213]
[1750624248256,12.493,2136.3,2135.3,1.5746]
[1750624248257,13.50370982,2136.1,2135.3,1.5746]
[1750624248594,23.038,2136.0,2134.3,1.6024]
[1750624248776,10.55,2135.6,2134.3,1.6024]
[1750624248981,21.6789,2135.5,2134.3,1.6024]
[1750624249199,0.55,2135.3,2134.3,1.6024]
[1750624249498,3.661,2135.2,2134.3,1.6024]
[1750624249996,12.484,2135.1,2134.4,0.04685245]
[1750624250212,11.26,2135.5,2134.5,0.0567]
[1750624250363,8.821,2135.5,2135.0,1.6639]
[1750624250807,8.821,2135.4,2135.0,1.6639]
[1750624250959,10.0,2136.2,2135.1,0.04683572]
[1750624251308,3.661,2135.8,2135.0,1.6639]
[1750624251662,0.55,2135.7,2135.0,1.6639]
[1750624251863,8.819,2135.6,2135.0,1.6639]
[1750624252165,1.6416,2135.7,2135.0,1.6639]
[1750624252490,12.391,2135.6,2135.0,1.6639]
[1750624253202,0.55,2135.5,2134.6,1.6562]
[1750624253903,1.6416,2136.0,2134.6,1.6562]
[1750624254090,0.55,2135.7,2134.6,1.6562]
[1750624254278,12.387,2135.6,2134.6,1.6562]
[1750624254667,0.55,2135.5,2134.6,1.6562]
[1750624254892,10.55,2135.5,2134.6,1.6562]
[1750624255093,0.55,2135.3,2134.6,1.6562]
[1750624255381,0.55,2134.9,2133.5,1.6363]
[1750624255566,26.38990982,2135.2,2133.2,0.4577141]
[1750624255567,10.0,2134.7,2133.7,1.6363]
[1750624255783,12.8862,2135.2,2133.8,0.04686304]
[1750624255991,12.8862,2135.2,2133.3,10.0]
[1750624255992,12.383,2135.1,2134.0,1.6363]
[1750624256207,12.383,2135.0,2134.0,1.6363]
[1750624256633,12.383,2135.0,2134.1,0.04685575]
[1750624256785,12.383,2135.0,2134.0,1.6363]
[1750624257102,14.7472,2135.0,2134.0,1.6363]
[1750624257306,5.9372,2135.0,2134.0,1.6363]
[1750624257506,8.808,2134.9,2134.1,0.04685619]
[1750624257829,8.808,2134.9,2134.0,1.6363]
[1750624259311,0.55,2134.8,2134.0,1.6363]
[1750624260009,10.55,2134.8,2134.0,1.6363]
[1750624260322,2.45582,2134.8,2134.0,1.6363]
[1750624260522,8.803,2134.7,2134.1,0.04685878]
[1750624260743,8.802,2134.6,2134.0,1.6363]
[1750624261194,12.375,2134.5,2134.0,1.6363]
[1750624261630,12.8862,2135.2,2134.0,1.6363]
[1750624261827,8.8,2135.1,2134.4,0.0567]
[1750624262030,11.259,2135.2,2134.5,11.6363]
[1750624262336,14.833,2136.0,2135.2,0.0567]
[1750624262519,14.833,2136.0,2134.7,10.0]
[1750624262520,3.573,2136.4,2135.6,1.6363]
[1750624262724,8.799,2136.5,2135.9,1.6363]
[1750624263021,14.833,2136.8,2136.0,0.04681074]
[1750624263242,8.798,2136.6,2136.2,0.0567]
[1750624263448,11.26,2136.8,2136.2,0.1035046]
[1750624263750,11.26,2136.8,2136.3,0.0567]
[1750624263953,11.26,2137.6,2136.4,6.31694338]
[1750624264251,11.26,2137.6,2136.2,13.9774402]
[1750624264252,8.795,2137.6,2136.8,1.693]
[1750624264551,0.32063487,2137.5,2136.8,1.693]
[1750624264718,0.32063487,2137.5,2137.0,13.50370982]
[1750624265038,0.32063487,2137.5,2137.2,0.0567]
[1750624265439,0.32063487,2137.5,2137.1,1.6363]
[1750624265662,0.32063487,2137.5,2137.2,0.0467792]
[1750624265806,0.32063487,2137.5,2137.3,0.0567]
[1750624266006,3.573,2137.9,2137.3,0.0567]
[1750624266212,8.792,2137.8,2137.3,0.0567]
[1750624266443,11.26,2138.4,2137.2,0.0567]
[1750624266617,3.572,2138.1,2137.2,0.0567]
[1750624267744,3.572,2138.3,2137.5,0.0567]
[1750624267947,3.572,2138.3,2137.7,0.0567]
[1750624268112,3.572,2138.3,2137.6,1.6212]
[1750624268113,8.785,2138.2,2137.6,1.6212]
[1750624268317,0.03529412,2137.8,2137.6,1.6779]
[1750624268956,0.03529412,2137.8,2137.7,0.0567]
[1750624269916,0.03529412,2137.8,2137.6,1.6212]
[1750624270320,0.03529412,2137.8,2137.2,1.6212]
[1750624270557,0.55,2137.5,2136.8,1.5362]
[1750624270791,10.35,2137.3,2135.7,1.5929]
[1750624271083,2.2697,2137.2,2135.8,0.39085242]
[1750624271233,1.5358,2137.1,2135.8,0.39085242]
[1750624271433,1.5358,2137.1,2135.8,0.43766982]
[1750624271945,8.774,2137.2,2136.3,1.5288]
[1750624272151,8.774,2137.2,2136.4,0.04679917]
[1750624272565,8.774,2137.2,2136.5,11.5855]
[1750624272736,3.57,2137.3,2136.6,0.04679528]
[1750624272930,12.342,2137.3,2136.5,1.5855]
[1750624273434,12.342,2137.3,2136.6,0.04679743]
[1750624273772,11.28629412,2137.8,2136.8,0.0567]
[1750624273975,12.34,2137.7,2136.9,1.5288]
[1750624274148,20.05629412,2137.8,2137.0,0.062]
[1750624274348,20.05629412,2137.8,2137.0,1.57145098]
[1750624275173,20.05629412,2137.8,2137.0,0.062]
[1750624275573,20.05629412,2137.8,2136.9,1.5288]
[1750624275781,0.55,2137.7,2136.9,1.5288]
[1750624275979,12.0858,2137.7,2136.9,1.5288]
[1750624276181,12.0858,2137.7,2136.3,1.5288]
[1750624276410,0.55,2137.6,2136.3,1.5288]
[1750624276549,10.55,2137.4,2136.3,1.5908]
[1750624276866,10.0,2137.4,2136.4,0.04680034]
[1750624277047,3.57,2137.5,2136.4,0.04680034]
[1750624277241,3.57,2137.5,2136.5,0.062]
[1750624277478,8.763,2137.4,2136.8,1.5288]
[1750624277690,0.03529412,2137.8,2137.0,0.062]
[1750624277874,0.03529412,2137.8,2137.2,1.5288]
[1750624279300,8.759,2137.7,2137.2,1.5288]
[1750624279499,8.759,2137.7,2137.3,0.062]
[1750624279793,8.758,2137.7,2137.2,1.5288]
[1750624279990,0.03529412,2137.8,2137.3,1.6423]
[1750624280192,0.03529412,2137.8,2137.4,1.57660098]
[1750624280488,0.03529412,2137.8,2137.3,1.5803]
[1750624281266,0.03529412,2137.8,2137.4,0.062]
[1750624281484,0.03529412,2137.8,2137.3,1.5803]
[1750624281669,0.03529412,2137.8,2137.5,0.062]
[1750624281880,0.03529412,2137.8,2137.7,0.062]
[1750624282497,0.03529412,2137.8,2137.6,1.6566]
[1750624283195,0.03529412,2137.8,2137.3,1.6566]
[1750624283405,8.78729412,2137.8,2137.3,1.6566]
[1750624284405,0.03529412,2137.8,2137.3,1.6566]
[1750624284578,0.03529412,2137.8,2137.3,1.7186]
[1750624284579,8.78329412,2137.8,2137.3,1.7186]
[1750624284779,8.78329412,2137.8,2137.3,1.6566]
[1750624284780,0.55,2137.7,2137.3,1.6566]
[1750624285169,0.55,2137.7,2137.0,1.6522]
[1750624285903,10.55,2137.7,2137.0,1.6522]
[1750624287201,0.55,2137.7,2137.0,1.6522]
[1750624287510,12.236,2137.6,2137.0,1.6522]
[1750624287972,0.55,2137.5,2137.0,1.6522]
[1750624288173,12.236,2137.6,2137.0,1.6522]
[1750624289319,10.55,2137.5,2136.6,1.5095]
[1750624289484,12.1891,2137.5,2136.6,1.5095]
[1750624289828,12.23,2137.4,2136.7,0.10880222]
[1750624290269,12.23,2137.4,2136.8,0.062]
[1750624290270,8.738,2137.4,2136.8,0.062]
[1750624290477,8.738,2137.5,2137.1,1.5095]
[1750624290994,8.738,2137.5,2137.2,0.062]
[1750624291190,8.738,2137.5,2137.1,1.5095]
[1750624291413,8.738,2137.5,2137.2,0.10878884]
[1750624291613,3.52629412,2137.8,2137.1,1.5095]
[1750624291820,12.26129412,2137.8,2137.2,0.10878648]
[1750624292111,12.26129412,2137.8,2137.2,1.57419963]
[1750624292708,0.55,2137.7,2137.1,1.5095]
[1750624293091,10.03529412,2137.8,2137.1,1.5095]
[1750624293291,12.223,2137.7,2137.1,1.5095]
[1750624293496,0.03529412,2137.8,2137.2,0.10878729]
[1750624293699,8.732,2137.7,2137.1,1.5095]
[1750624293896,0.03529412,2137.8,2137.2,0.0467851]
[1750624294312,8.731,2137.7,2137.1,1.5095]
[1750624294531,8.731,2137.7,2137.2,0.61888908]
[1750624294818,8.731,2137.7,2137.3,0.062]
[1750624295025,8.731,2137.7,2137.2,0.61888908]
[1750624295321,0.03529412,2137.8,2137.2,10.062]
[1750624295818,0.03529412,2137.8,2137.4,0.062]
[1750624296133,0.03529412,2137.8,2137.5,4.72501277]
[1750624296310,0.03529412,2137.8,2137.7,0.062]
[1750624296483,0.03529412,2137.8,2137.7,4.78669212]
[1750624296686,8.7775508,2138.4,2137.8,6.28327804]
[1750624296886,0.0515508,2138.4,2137.9,13.55047334]
[1750624297097,0.0515508,2138.4,2137.9,18.65052335]
[1750624297418,0.0515508,2138.4,2138.0,0.062]
[1750624297629,0.0515508,2138.4,2138.2,1.6057]
[1750624297829,0.0515508,2138.4,2138.3,0.10876088]
[1750624297987,0.0515508,2138.4,2138.3,0.10875568]
[1750624298534,0.0515508,2138.4,2138.3,0.69491046]
[1750624298722,0.0515508,2138.4,2138.3,0.062]
[1750624298886,0.0515508,2138.4,2138.3,28.28907557]
[1750624299132,3.49,2139.3,2138.5,0.062]
[1750624299436,3.49,2139.7,2138.8,1.5437]
[1750624300215,3.49,2139.7,2139.0,0.062]
[1750624300417,8.718,2139.6,2139.0,0.062]
[1750624300603,3.49,2140.0,2139.0,0.062]
[1750624300902,3.49,2140.0,2139.3,0.062]
[1750624301123,1.6593,2141.0,2139.6,13.50370982]
[1750624301328,3.49,2140.7,2139.7,0.04672695]
[1750624301510,3.49,2140.8,2139.9,1.5976]
[1750624301815,12.204,2140.8,2140.0,0.04671928]
[1750624302056,3.49,2140.8,2140.1,0.062]
[1750624302235,3.49,2140.8,2140.1,1.58300291]
[1750624302399,3.49,2140.8,2140.2,1.5976]
[1750624302606,10.0,2140.7,2139.5,1.5976]
[1750624302832,0.37668449,2151.0,2139.8,0.062]
[1750624302995,0.37668449,2151.0,2139.6,3.07985352]
[1750624302996,2.31399529,2147.2,2143.5,0.5]
[1750624303189,2.31381435,2147.6,2144.3,2.77085094]
[1750624303418,2.82096184,2147.5,2145.9,4.65995558]
[1750624303590,2.52096184,2147.5,2146.5,0.55]
[1750624303795,2.52096184,2147.5,2146.8,1.5976]
[1750624304112,2.74625733,2148.7,2147.2,0.55]
[1750624304289,0.4992,2149.5,2148.6,18.2318211]
[1750624304491,13.85985309,2148.7,2148.6,16.33784997]
[1750624304692,15.51915309,2148.7,2148.6,13.84937458]
[1750624304918,11.3653,2148.7,2148.6,13.84937458]
[1750624305123,11.3653,2148.7,2148.6,25.57536242]
[1750624305291,1.4093,2148.7,2148.6,25.57536242]
[1750624305492,1.4093,2148.7,2148.6,23.52733535]
[1750624305493,15.26915309,2148.7,2148.6,23.52733535]
[1750624305696,0.4992,2148.2,2148.1,17.63818532]
[1750624305944,0.4992,2148.0,2147.7,7.23806802]
[1750624306225,35.76085309,2148.2,2146.5,8.08407974]
[1750624306226,0.4992,2147.5,2146.5,8.08407974]
[1750624306428,13.85985309,2146.7,2145.8,1.34498667]
[1750624306592,13.85985309,2146.3,2145.9,0.10524904]
[1750624306795,31.58,2146.2,2145.0,1.34498667]
[1750624307018,31.58,2146.2,2144.2,6.01978892]
[1750624307019,13.85985309,2145.5,2144.2,1.5365]
[1750624307201,13.85985309,2145.5,2143.9,1.401077]
[1750624307399,21.901,2146.2,2143.4,2.88148667]
[1750624307400,23.53785309,2145.4,2143.4,2.88148667]
[1750624307612,0.55,2145.0,2143.4,1.5365]
[1750624307800,13.85985309,2144.7,2143.4,1.5365]
[1750624307991,13.85985309,2144.3,2143.1,0.4961]
[1750624308198,9.68,2144.2,2143.1,0.4961]
[1750624308425,1.6356,2144.4,2143.1,0.4961]
[1750624308632,10.227,2144.3,2143.1,0.4961]
[1750624308930,0.55,2143.9,2143.1,0.4961]
[1750624309096,0.55,2143.5,2143.1,0.4961]
[1750624309299,14.40985309,2143.2,2143.1,0.4961]
[1750624309663,25.71845309,2143.2,2141.5,1.5365]
[1750624309798,0.55,2143.1,2141.5,1.5365]
[1750624309993,0.55,2143.1,2141.5,1.83052867]
[1750624310198,0.55,2143.1,2141.6,0.10548549]
[1750624310420,0.55,2142.9,2141.6,0.0588]
[1750624310597,4.862,2142.8,2141.6,13.90652985]
[1750624310806,9.666,2142.7,2141.7,1.63250585]
[1750624311004,11.221,2142.6,2141.7,1.63250585]
[1750624311209,11.221,2142.6,2141.7,6.30166494]
[1750624311535,11.221,2142.6,2141.8,4.66888093]
[1750624311825,11.221,2142.6,2141.7,1.63250585]
[1750624312030,11.221,2142.6,2141.8,1.54923589]
[1750624312330,14.508,2142.5,2141.7,0.0588]
[1750624312529,20.863,2142.4,2141.7,0.0588]
[1750624312730,14.501,2142.3,2141.7,0.0588]
[1750624313139,10.0,2142.2,2141.7,0.0588]
[1750624313520,10.0,2142.2,2141.5,1.5365]
[1750624313720,14.501,2142.3,2141.5,1.5365]
[1750624313721,14.486,2142.1,2141.5,1.5365]
[1750624315035,10.0,2142.3,2141.5,1.5365]
[1750624315036,14.473,2142.0,2141.5,1.5365]
[1750624315236,14.467,2142.0,2141.6,0.04668887]
[1750624315537,14.467,2142.0,2141.6,0.0588]
[1750624316236,14.345,2141.9,2141.6,0.10548466]
[1750624316403,14.333,2141.8,2141.6,4.77488683]
[1750624316600,11.221,2142.2,2141.7,0.0588]
[1750624317133,11.221,2142.2,2141.6,4.66940605]
[1750624317333,11.221,2142.2,2141.8,0.0588]
[1750624317638,11.221,2142.2,2141.8,0.04667879]
[1750624317826,11.221,2142.2,2141.5,1.5365]
[1750624317827,14.32,2142.1,2141.5,1.5365]
[1750624318136,11.221,2142.2,2141.5,1.5365]
[1750624318137,14.309,2142.0,2141.6,0.0588]
[1750624318436,14.309,2142.0,2141.5,6.20608148]
[1750624318639,14.309,2142.0,2141.6,0.0588]
[1750624318841,11.221,2142.2,2141.5,6.20608148]
[1750624319144,14.296,2142.1,2141.5,1.5953]
[1750624319310,14.296,2142.1,2141.5,1.5365]
[1750624320014,14.296,2142.1,2141.5,1.3365]
[1750624320218,14.296,2142.1,2141.1,10.0588]
[1750624320412,10.0,2142.0,2141.1,0.0588]
[1750624320640,10.0,2141.8,2140.7,1.85211556]
[1750624320857,10.0,2141.8,2140.6,2.68997335]
[1750624320858,4.744,2141.7,2140.8,2.35302946]
[1750624321042,10.55,2141.6,2140.5,1.79331556]
[1750624321343,4.744,2141.5,2140.9,13.91865309]
[1750624321528,9.526,2141.7,2141.3,18.52985121]
[1750624321744,11.221,2142.1,2141.6,4.72820605]
[1750624322063,14.267,2142.3,2141.9,4.66866501]
[1750624322239,14.267,2142.3,2142.0,0.0588]
[1750624322609,14.265,2142.2,2142.0,0.0588]
[1750624323387,9.517,2142.1,2142.0,0.0588]
[1750624323513,9.504,2142.1,2142.0,0.0588]
[1750624323712,9.498,2142.4,2142.1,0.0588]
[1750624323956,9.498,2142.4,2141.9,1.79331556]
[1750624324157,9.498,2142.4,2141.8,1.5424]
[1750624324313,10.0,2142.3,2141.4,2.68997335]
[1750624324704,2.1137,2142.2,2141.0,2.68997335]
[1750624324963,2.1137,2142.2,2140.7,5.12903113]
[1750624324964,10.55,2142.0,2140.5,2.68997335]
[1750624325262,10.55,2142.0,2140.4,2.68997335]
[1750624325563,1.5637,2142.2,2140.6,10.0588]
[1750624325719,10.0,2141.8,2141.0,2.68997335]
[1750624325910,10.0,2142.1,2141.1,0.04669879]
[1750624326115,14.097,2142.0,2141.1,2.68997335]
[1750624326314,14.097,2142.0,2141.0,0.0588]
[1750624326315,14.097,2142.0,2141.0,2.74877335]
[1750624326750,1.5637,2142.2,2141.0,2.74877335]
[1750624326751,14.089,2141.9,2141.2,2.68997335]
[1750624327052,11.222,2142.9,2141.6,1.5167]
[1750624327237,14.088,2142.8,2141.8,2.68997335]
[1750624327434,10.0,2142.7,2141.9,0.04668135]
[1750624327612,14.084,2142.6,2142.0,2.68997335]
[1750624327953,9.474,2143.2,2142.5,1.6129]
[1750624328249,4.615,2143.3,2142.8,2.78556225]
[1750624328547,9.473,2143.2,2143.0,2.72676225]
[1750624328712,9.473,2143.2,2143.1,2.72676225]
[1750624329112,11.222,2143.7,2143.1,2.72676225]
[1750624329315,11.222,2143.7,2143.3,2.78556225]
[1750624329545,20.68,2143.7,2143.4,0.0588]
[1750624329758,20.68,2143.7,2143.4,3.64543113]
[1750624329958,5.835,2144.8,2143.8,0.0588]
[1750624329959,4.614,2144.8,2143.8,0.0588]
[1750624330114,9.46,2144.7,2144.0,8.30801431]
[1750624330314,9.46,2144.7,2143.9,0.68867089]